Cogmind - Beta 16.1 @@@ ROGUE MODE // 2026.02.16 @ 15:23:08 Player: Florist Result: Destroyed by C-17 Slicer with Blade Saw Performance ------------- Evolutions (4) 2000 Regions Visited (9) 1800 Robots Destroyed (168) 840 Value Destroyed (5044) 5044 Prototype IDs (7) 140 Alien Tech Used (0) 0 Bonus (1988) 1988 TOTAL SCORE: 11812 Bonus ------- High Alert Combat Kills 617 Follower Combat Kills 471 Entered Garrisons 400 Used RIF Installer 500 Cogmind --------- Core Integrity 0/850 Matter 10/300 Energy 100/100 System Corruption 0% Temperature Cool (0) Movement Core (50) Location -6/Garrison Parts ------- > --- POWER (1) -------- (None) > --- PROPULSION (4) --- (None) > --- UTILITY (6) ------ (None) > --- WEAPON (4) ------- (None) > --- INVENTORY (5) ---- Improved Sensor Array Relay Coupler [NC] (25) Relay Coupler [Grunt] (27) Rocket Array Remote Datajack Peak State ------------ > --- POWER ------------ Cooled Deuterium Engine > --- PROPULSION ------- Light Treads Light Treads Light Treads Light Treads > --- UTILITY ---------- High-capacity Storage Unit Improved Sensor Array Advanced Signal Interpreter Advanced Targeting Computer Relay Coupler [NC] Relay Coupler [Grunt] > --- WEAPON ----------- Gauss Rifle KE Penetrator Railgun Railgun > --- INVENTORY -------- Cooled Deuterium Engine Light Treads Light Treads Light Treads Machine Analyzer Armor Integrity Analyzer Medium Armor Plating Heavy Armor Plating Hardened Light Armor Plating Improved Medium Armor Plating Improved Medium Armor Plating Improved Medium Armor Plating Hacking Suite Relay Coupler [Sentry] Relay Coupler [Heavy] Flak Gun Rocket Array Remote Datajack Plasma Cutter [Rating: 55] Favorites ----------- Power Light Deuterium Engine Engine Light Deuterium Engine Propulsion Light Treads Treads Light Treads Leg Carbon-fiber Leg Hover Unit Backup Propulsion I Flight Unit VTOL Module Utility Huge Storage Unit Device Seismic Detector Storage Huge Storage Unit Processor Advanced Targeting Computer Hackware Relay Coupler [NC] Protection Improved Medium Armor Plating Weapon Gauss Rifle Energy Gun Improved EM Shotgun Ballistic Gun Gauss Rifle Launcher Grenade Launcher Special Weapon Remote Datajack Slashing Weapon Mining Claw Build | -11 -10 -9 -8 -8 -7 -7 -7 -6 -6 ------- Run | Yrd Mat Mat Mat Gar Fac Low Low Fac Gar Slots Evolved 8 | . . 2 2 . 2 . . 2 . Power . | . . . . . . . . . . Propulsion 2 | . . 1 1 . . . . . . Utility 4 | . . . . . 2 . . 2 . Weapon 2 | . . 1 1 . . . . . . Parts Attached 104 | 7 4 21 28 15 6 5 . 6 12 Power 10 | 1 1 2 3 1 1 . . . 1 Engine 10 | 1 1 2 3 1 1 . . . 1 Core . | . . . . . . . . . . Reactor . | . . . . . . . . . . Propulsion 29 | 2 . 8 8 6 2 . . 1 2 Treads 20 | 2 . 4 6 3 2 . . 1 2 Leg 4 | . . 1 . 3 . . . . . Wheel . | . . . . . . . . . . Hover . | . . . . . . . . . . Flight 5 | . . 3 2 . . . . . . Utility 27 | 2 1 4 4 3 2 2 . 5 4 Device 4 | 1 . . . 1 . . . 1 1 Storage 6 | 1 1 1 3 . . . . . . Processor 3 | . . . . . 2 . . 1 . Hackware 7 | . . . . . . 2 . 2 3 Protection 7 | . . 3 1 2 . . . 1 . Artifact . | . . . . . . . . . . Weapon 38 | 2 2 7 13 5 1 3 . . 5 Energy Gun 9 | . . 3 6 . . . . . . Energy Cannon . | . . . . . . . . . . Ballistic Gun 20 | 2 . 1 6 4 . 2 . . 5 Ballistic Cannon . | . . . . . . . . . . Launcher 3 | . . 1 1 . 1 . . . . Special Weapon 2 | . . . . 1 . 1 . . . Impact Weapon . | . . . . . . . . . . Slashing Weapon 4 | . 2 2 . . . . . . . Piercing Weapon . | . . . . . . . . . . Special Melee Weapon . | . . . . . . . . . . Unidentified Prototypes 7 | . . 1 4 . 2 . . . . Parts Lost 51 | . 3 13 7 3 . 3 . . 22 Power 4 | . 1 1 . . . . . . 2 Propulsion 20 | . 1 6 3 2 . 1 . . 7 Utility 9 | . 1 3 1 . . . . . 4 Weapon 18 | . . 3 3 1 . 2 . . 9 Highest Loss Streak 10 | . 2 7 6 3 . 3 . . 10 To Critical Strikes 2 | . . 1 . . . 1 . . . Average Backups 16 | 1 8 11 14 21 22 22 22 18 16 Power . | . . . . . . 1 1 1 . Propulsion 2 | . 1 5 1 3 3 3 3 2 1 Utility 9 | . 1 2 8 14 14 15 15 11 11 Weapon 2 | . 4 1 3 2 3 2 2 2 1 Tool/Special . | . . . . . . . . . . Unused Backups 27 | . 3 1 4 4 3 . . . 12 Power 1 | . . 1 . . . . . . . Propulsion 6 | . . . 2 1 3 . . . . Utility 17 | . . . 2 3 . . . . 12 Weapon 3 | . 3 . . . . . . . . Tool/Special . | . . . . . . . . . . Average Slot Usage (%) 90 | . 89 71 94 98 99 91 92 98 71 Engine 7 | . 12 3 8 9 7 7 7 6 5 Treads 22 | . 19 17 35 15 30 25 23 25 15 Leg 5 | . . . . 20 . . . . . Device 2 | . 12 . . . 1 . . 5 5 Storage 8 | . 14 11 9 9 7 7 7 6 5 Processor 4 | . . . . . 13 15 15 13 12 Hackware 1 | . . . . . . 1 7 9 6 Protection 5 | . . 6 8 8 7 3 . 2 . Energy Gun 5 | . . 7 21 . . . . . . Ballistic Gun 19 | . 5 3 9 35 29 25 23 20 16 Slashing Weapon 4 | . 22 17 . . . . . . . Peak Build Rating 55 | 7 8 12 46 40 46 43 39 47 55 Average Rating 32 | 5 6 9 39 38 43 39 39 44 37 On Entrance 25 | . 7 5 9 25 39 43 39 39 47 Avg Prop Armor Cover (%) 5 | . . . 14 4 . . . . . Naked Turns 10 | . . . . . . . . . 10 Heaviest Build 114 | 12 18 33 104 113 114 114 106 114 73 Greatest Support 112 | 40 40 60 112 82 82 80 60 80 80 Greatest Overweight (x) 10 | . . 2 6 10 1 1 1 1 2 Average Overweight (x) . | . . . . 1 1 1 1 . . Largest Inventory Capacity 25 | 8 10 15 25 25 25 25 25 25 20 Average Capacity 19 | 7 9 14 16 25 25 25 25 20 18 Most Carried 25 | 2 10 15 23 25 25 25 23 22 20 Average Carried 17 | 1 9 11 14 22 23 23 23 18 17 Final Capacity 25 | 8 10 10 25 25 25 25 25 20 5 Final Carried 25 | 2 10 7 20 25 25 23 23 18 5 Class Distribution -------------------- 25% | Tank 21% | Mutant 19% | Scavenger-Tank 11% | Scavenger-Gunner 5% | Scavenger-Skirmisher 5% | Bothacker-Gunner 3% | Bothacker-Mutant Dominant Class ---------------- Mutant | -10/Materials Mutant | -9/Materials Tank | -8/Materials Scavenger-Tank | -8/Garrison Scavenger-Gunner | -7/Factory Scavenger-Gunner | -7/Lower Caves Scavenger-Gunner | -7/Lower Caves Scavenger-Skirmisher | -6/Factory Bothacker-Mutant | -6/Garrison Resources | -11 -10 -9 -8 -8 -7 -7 -7 -6 -6 ----------- Run | Yrd Mat Mat Mat Gar Fac Low Low Fac Gar Matter Collected 3365 | 320 136 419 486 871 448 110 . 234 341 Remotely . | . . . . . . . . . . Salvage Created 6163 | 278 527 1021 2213 752 879 127 . 49 317 Parts 354 | 23 27 61 129 46 38 10 . 5 15 Haulers Intercepted 11 | . . 1 6 . 4 . . . . Recyclers Shooed 3 | 1 . . 1 . 1 . . . . Parts Field Recycled . | . . . . . . . . . . Retrieved Matter . | . . . . . . . . . . Parts Self-Destructed 10 | . . . . . . 10 . . . Prevented . | . . . . . . . . . . Parts Restored . | . . . . . . . . . . Kills | -11 -10 -9 -8 -8 -7 -7 -7 -6 -6 ------- Run | Yrd Mat Mat Mat Gar Fac Low Low Fac Gar Combat Hostiles Destroyed 96 | . 8 21 29 15 7 4 . 1 11 Melee 15 | . 8 7 . . . . . . . Guns 66 | . . 13 22 14 5 4 . 1 7 AOE 13 | . . . 6 1 2 . . . 4 Classes Destroyed 18 | 3 5 4 2 1 1 . . . 2 Worker 20 | 2 1 2 10 . 5 . . . . Builder 8 | . . 1 6 . 1 . . . . Tunneler 10 | 8 . . 1 . 1 . . . . Hauler 11 | . . 1 6 . 4 . . . . Recycler 12 | 1 2 3 3 . 3 . . . . Mechanic 3 | . 1 1 1 . . . . . . Operator 1 | . 1 . . . . . . . . Watcher 6 | . 1 . 5 . . . . . . Swarmer 36 | . 3 9 12 2 . 3 . . 7 Grunt 31 | . 5 7 6 7 6 . . . . Brawler 1 | . . 1 . . . . . . . Duelist 2 | . . . 1 . . 1 . . . Sentry 18 | . . 4 9 4 . . . . 1 Specialist 1 | . . . . 1 . . . . . Hunter 4 | . . . 1 2 . . . 1 . Programmer 1 | . . . . . 1 . . . . Behemoth 1 | . . . . . . . . . 1 Striker 2 | . . . . . . . . . 2 Best Kill Streak 15 | 6 4 7 15 3 10 3 . 1 4 Combat Bots Only 7 | . 4 7 5 3 4 3 . 1 4 Max Kills in Single Turn 7 | 1 1 2 4 2 7 2 . 1 2 Gunslinging 1 | . . 1 1 1 . 1 . . 1 Exploded 2 | . . . 1 1 2 . . . 2 Melee 1 | . 1 1 . . . . . . . Uniques/NPCs Destroyed . | . . . . . . . . . . Combat | -11 -10 -9 -8 -8 -7 -7 -7 -6 -6 -------- Run | Yrd Mat Mat Mat Gar Fac Low Low Fac Gar Hostile Shots Fired 700 | . 113 181 156 87 16 23 . 7 117 Missed 175 | . 27 41 60 18 . 5 . 1 23 Hits 525 | . 86 140 96 69 16 18 . 6 94 Melee 13 | . . 2 . . . . . . 11 Projectile 512 | . 86 138 96 69 16 18 . 6 83 Critical Strikes 21 | . 1 5 3 1 . 1 . 1 9 Damage Taken 9207 | . 875 1594 2130 827 316 268 . 122 3075 Core 1821 | . 240 358 208 119 17 15 . . 864 Absorbed by Shields . | . . . . . . . . . . Regen/Repaired (Parts) 112 | . 112 . . . . . . . . Core Remaining (%) 49 | 100 4 10 . 40 . . 95 . . Volleys Fired 349 | 32 2 50 83 52 23 24 1 15 67 Largest 4 | 2 2 3 4 4 4 4 1 3 4 Hottest 185 | 40 40 128 185 112 112 112 5 84 131 Shots Fired 832 | 64 4 110 277 134 92 33 1 19 98 Gun 790 | 64 4 110 275 131 92 15 . 6 93 Cannon . | . . . . . . . . . . Launcher 8 | . . . 2 2 . . . . 4 Special 34 | . . . . 1 . 18 1 13 1 Kinetic 519 | 64 4 33 81 131 92 15 . 6 93 Thermal 83 | . . 77 5 1 . . . . . Explosive 8 | . . . 2 2 . . . . 4 Electromagnetic 189 | . . . 189 . . . . . . Robot Hit Streak 22 | 8 4 15 19 17 20 11 3 12 22 Robot Miss Streak 15 | 4 1 5 15 3 2 3 . 1 9 Penetration Max 1 | . . . . 1 1 . . . . Secondary Targets 17 | . . 5 4 5 . 2 . . 1 Max Gunslinging Chain 1 | . . 1 1 1 . 1 . . 1 Shots Hit Robots 591 | 36 40 116 180 68 51 26 1 16 57 Core Hits 290 | 17 15 39 98 37 24 8 . 3 49 Critical Kills 6 | 1 . . . . 4 . . . 1 Critical Parts Destroyed 5 | . . . . 3 2 . . . . Critical Strikes 11 | 1 . . . 3 6 . . . 1 Destroy 11 | 1 . . . 3 6 . . . 1 Melee Attacks 120 | . 62 58 . . . . . . . Impact . | . . . . . . . . . . Slashing 120 | . 62 58 . . . . . . . Piercing . | . . . . . . . . . . Sneak Attacks 15 | . 7 8 . . . . . . . Combat Hostiles . | . . . . . . . . . . Follow-up Attacks 16 | . 7 9 . . . . . . . Damage Inflicted 13234 | 370 1037 2027 4228 1447 1662 268 . 61 2134 Guns 8377 | 370 23 1059 3043 1401 1065 268 . 61 1087 Cannons . | . . . . . . . . . . Explosions 2865 | . . . 1183 46 597 . . . 1039 Melee 1982 | . 1014 968 . . . . . . . Ramming 10 | . . . 2 . . . . . 8 Kinetic 5598 | 370 23 347 976 1401 1065 268 . 61 1087 Thermal 2343 | . . 712 1034 . 597 . . . . Explosive 1287 | . . . 202 46 . . . . 1039 Electromagnetic 2014 | . . . 2014 . . . . . . Impact . | . . . . . . . . . . Slashing 1982 | . 1014 968 . . . . . . . Piercing . | . . . . . . . . . . Highest Corruption 9 | . . 9 . . . . . . . Average Corruption 9 | . . 9 . . . . . . . Corruption Purged . | . . . . . . . . . . Corruption Blocked . | . . . . . . . . . . Effects 7 | . . 7 . . . . . . . Message Errors 1 | . . 1 . . . . . . . Matter Fused 1 | . . 1 . . . . . . . Energy Discharges 2 | . . 2 . . . . . . . Data Loss (major) 2 | . . 2 . . . . . . . Alerts 1 | . . 1 . . . . . . . Overload Shots . | . . . . . . . . . . Overflow Damage 304 | . 109 40 26 . 110 . . . 19 Projectiles . | . . . . . . . . . . Explosions 155 | . . . 26 . 110 . . . 19 Melee 149 | . 109 40 . . . . . . . Knockbacks . | . . . . . . . . . . Impact . | . . . . . . . . . . Kinetic . | . . . . . . . . . . Secondary . | . . . . . . . . . . Self-Inflicted Damage 981 | . . . 280 . 53 . . . 648 Shots 31 | . . . 7 . 1 . . . 23 Rammed 5 | . . . 1 . . . . . 4 Targets Rammed 5 | . . . 1 . . . . . 4 Kicked . | . . . . . . . . . . Crushed . | . . . . . . . . . . Highest Temperature 680 | . . 438 448 250 175 42 . . 680 Average Temperature 129 | . . 166 135 78 52 29 . . 199 Received Heat Transfer 2916 | . 258 711 351 207 144 54 . 27 1164 Effects 21 | . . 2 9 . . . . . 10 Shutdowns 2 | . . . 1 . . . . . 1 Energy Bleed 1 | . . . 1 . . . . . . Interference 9 | . . . 6 . . . . . 3 Matter Decay 1 | . . 1 . . . . . . . Short Circuit 1 | . . . 1 . . . . . . Damage (minor) 1 | . . . . . . . . . 1 Damage (major) 5 | . . 1 . . . . . . 4 Damage (core) 1 | . . . . . . . . . 1 Siege Activations . | . . . . . . . . . . Martial Activations . | . . . . . . . . . . Shielding Activations . | . . . . . . . . . . Robots Disrupted . | . . . . . . . . . . Combat Hostiles . | . . . . . . . . . . Robots Corrupted 2 | . . . 2 . . . . . . Combat Hostiles 1 | . . . 1 . . . . . . Parts Fried 9 | . . . 9 . . . . . . Impact Corruptions . | . . . . . . . . . . Robots Melted 1 | . . 1 . . . . . . . Combat Hostiles 1 | . . 1 . . . . . . . Parts Melted 1 | . . 1 . . . . . . . Heat Transferred 3364 | . . 1653 1311 . 400 . . . . Parts Sabotaged . | . . . . . . . . . . Parts Stolen . | . . . . . . . . . . Parts Stripped . | . . . . . . . . . . Power Chain Reactions 13 | . . . 13 . . . . . . Alert | -11 -10 -9 -8 -8 -7 -7 -7 -6 -6 ------- Run | Yrd Mat Mat Mat Gar Fac Low Low Fac Gar Maximum Alert Level 5 | . 1 1 2 5 4 . . . 1 Low Security (%) 36 | 100 98 71 32 . . . . 100 36 Level 1 17 | . 1 28 20 3 . . . . 63 Level 2 20 | . . . 46 32 . . . . . Level 3 11 | . . . . 18 75 . . . . Level 4 11 | . . . . 36 24 . . . . Level 5 2 | . . . . 10 . . . . . High Security . | . . . . . . . . . . Max Security . | . . . . . . . . . . Peak Influence 1757 | 20 200 265 535 1757 1253 . . 196 281 Initial 921 | . . 43 94 323 921 . . 196 81 Average 482 | 2 92 99 298 1025 954 . . 152 209 Influence Increases 5135 | 55 395 717 1181 1544 593 130 . 80 440 Destroy 0b10 Robot/C 2240 | . 160 420 580 580 140 80 . 60 220 Destroy 0b10 Robot/NC 360 | 55 30 40 160 . 70 . . . 5 Destroy Leader 414 | . 42 92 182 30 28 20 . 10 10 Allied During Kill 91 | . . . . 82 . . . 9 . Successful Hack 143 | . 12 28 13 28 48 . . . 14 Disable Machine 315 | . . . 60 15 240 . . . . Anti-Garrison Action 800 | . . . . 700 . . . . 100 Destroy Structure 292 | . 1 2 81 79 52 . . 1 76 Partial Spotted 15 | . . 15 . . . . . . . Lose Combat Pursuer 465 | . 150 120 105 30 15 30 . . 15 Influence Decreases 4854 | 55 291 596 909 284 1162 809 197 276 275 Entered New Map 1891 | . . 61 131 174 836 441 97 116 35 Time Decay 2156 | 55 261 418 558 . 326 318 100 120 . Lost Part 497 | . 30 117 70 30 . 30 . . 220 Lost Ally 160 | . . . . 80 . 20 . 40 20 Purge Threat 150 | . . . 150 . . . . . . Squads Dispatched 7 | . 1 1 3 . . . . 2 . Investigation 1 | . . 1 . . . . . . . Extermination . | . . . . . . . . . . Reinforcement 4 | . 1 . 2 . . . . 1 . Assault . | . . . . . . . . . . Garrison 2 | . . . 1 . . . . 1 . Intercept . | . . . . . . . . . . Searches Triggered . | . . . . . . . . . . Construction Impeded . | . . . . . . . . . . Haulers Reinforced 1 | . . . . . . . . 1 . Active Scanning Responses . | . . . . . . . . . . Cargo Convoy Interrupts . | . . . . . . . . . . Stealth | -11 -10 -9 -8 -8 -7 -7 -7 -6 -6 --------- Run | Yrd Mat Mat Mat Gar Fac Low Low Fac Gar Distress Signals 9 | . 1 3 5 . . . . . . Communications Jammed . | . . . . . . . . . . Distress Signals . | . . . . . . . . . . Times Spotted 169 | . 22 41 44 26 8 7 . 6 15 Peak Tracking Total 6 | . 5 6 6 4 4 3 . 2 4 Tactical Retreats 21 | . 6 6 4 2 1 1 . . 1 Traps | -11 -10 -9 -8 -8 -7 -7 -7 -6 -6 ------- Run | Yrd Mat Mat Mat Gar Fac Low Low Fac Gar Traps Triggered 12 | . 1 1 1 4 . . . . 5 Indirectly . | . . . . . . . . . . Trap Hack Attempts . | . . . . . . . . . . Triggered . | . . . . . . . . . . Disarmed . | . . . . . . . . . . Reprogrammed . | . . . . . . . . . . Reused . | . . . . . . . . . . Traps Extracted . | . . . . . . . . . . Installed . | . . . . . . . . . . Triggered . | . . . . . . . . . . Machines | -11 -10 -9 -8 -8 -7 -7 -7 -6 -6 ---------- Run | Yrd Mat Mat Mat Gar Fac Low Low Fac Gar Machines Disabled 30 | . . . 4 8 16 . . . 2 Max in Single Turn 15 | . . . 1 2 15 . . . 1 Garrison Relay 5 | . . . . 3 . . . . 2 Phase Generator 1 | . . . . 1 . . . . . Machines Repaired . | . . . . . . . . . . Machines Dismantled . | . . . . . . . . . . Machines Sabotaged . | . . . . . . . . . . Overloaded Fab Kills . | . . . . . . . . . . Hacking | -11 -10 -9 -8 -8 -7 -7 -7 -6 -6 --------- Run | Yrd Mat Mat Mat Gar Fac Low Low Fac Gar Machines Accessed 25 | . 4 5 11 2 1 . . 1 1 Terminals 20 | . 3 5 9 2 . . . . 1 Fabricators . | . . . . . . . . . . Repair Stations 1 | . 1 . . . . . . . . Recycling Units . | . . . . . . . . . . Scanalyzers 2 | . . . 1 . 1 . . . . Garrison Access 2 | . . . 1 . . . . 1 . Total Hacks 71 | . 12 19 28 4 4 . . 1 3 Successful 46 | . 8 12 18 2 4 . . 1 1 Failed 24 | . 4 7 9 2 . . . . 2 Catastrophic 3 | . . . 2 . . . . . 1 Database Lockouts 1 | . . . 1 . . . . . . Manual 46 | . 9 15 22 . . . . . . Terminals 58 | . 9 19 23 4 . . . . 3 Fabricators . | . . . . . . . . . . Repair Stations 3 | . 3 . . . . . . . . Recycling Units . | . . . . . . . . . . Scanalyzers 7 | . . . 3 . 4 . . . . Garrison Access 3 | . . . 2 . . . . 1 . Terminal Hacks 7 | . . 2 2 2 . . . . 1 Emergency Access Points 2 | . . . . 1 . . . . 1 Alert Level 1 | . . . 1 . . . . . . Unreport Threat 1 | . . . 1 . . . . . . Locate Traps 1 | . . 1 . . . . . . . Zone Layout 1 | . . 1 . . . . . . . Garrison Registry 1 | . . . . 1 . . . . . Fabricator Hacks . | . . . . . . . . . . Repair Station Hacks 3 | . 3 . . . . . . . . Scan Component 1 | . 1 . . . . . . . . Repair 1 | . 1 . . . . . . . . Refit 1 | . 1 . . . . . . . . Recycling Unit Hacks . | . . . . . . . . . . Scanalyzer 5 | . . . 1 . 4 . . . . Retrieve Study 5 | . . . 1 . 4 . . . . Garrison Access Hacks 2 | . . . 1 . . . . 1 . Unlock Access 2 | . . . 1 . . . . 1 . Unauthorized Hacks 28 | . 5 10 13 . . . . . . Terminals 28 | . 5 10 13 . . . . . . Assimilate 1 | . . . 1 . . . . . . Botnet 14 | . 3 4 7 . . . . . . Operators 1 | . . 1 . . . . . . . Skim 12 | . 2 5 5 . . . . . . Fabricators . | . . . . . . . . . . Repair Stations . | . . . . . . . . . . Recycling Units . | . . . . . . . . . . Scanalyzers . | . . . . . . . . . . Garrison Access . | . . . . . . . . . . Data Cores Recovered . | . . . . . . . . . . Used . | . . . . . . . . . . Hacking Detections 21 | . 4 4 10 1 . . . 1 1 Full Trace Events 2 | . 1 . . 1 . . . . . Feedback Events . | . . . . . . . . . . Feedback Blocked . | . . . . . . . . . . Robot Schematics Acquired . | . . . . . . . . . . Robots Built . | . . . . . . . . . . Authchips . | . . . . . . . . . . Time . | . . . . . . . . . . Total Robot Build Rating . | . . . . . . . . . . Part Schematics Acquired . | . . . . . . . . . . Parts Built . | . . . . . . . . . . Authchips . | . . . . . . . . . . Time . | . . . . . . . . . . Total Part Build Rating . | . . . . . . . . . . Part Studies Acquired 5 | . . . 1 . 4 . . . . Parts Repaired 1 | . 1 . . . . . . . . Time 26 | . 26 . . . . . . . . Parts Recycled . | . . . . . . . . . . Recycled Matter . | . . . . . . . . . . Retrieved Matter . | . . . . . . . . . . Retrieved Components . | . . . . . . . . . . Parts Scanalyzed . | . . . . . . . . . . Part Schematics Acquired . | . . . . . . . . . . Parts Damaged . | . . . . . . . . . . Bothacking | -11 -10 -9 -8 -8 -7 -7 -7 -6 -6 ------------ Run | Yrd Mat Mat Mat Gar Fac Low Low Fac Gar Used RIF Installer 1 | . . . . 1 . . . . . Robots Hacked 11 | . . . . . . 3 . 7 1 Non-combat 4 | . . . . . . 1 . 3 . Combat 7 | . . . . . . 2 . 4 1 Robot Hacks Applied 21 | . . . . . . 8 1 11 1 parse_system 5 | . . . . . . 3 1 1 . no_distress 1 | . . . . . . 1 . . . generate_anomaly 1 | . . . . . . . . 1 . generate_echo 1 | . . . . . . 1 . . . map_walls 1 | . . . . . . . . 1 . find_recycling 1 | . . . . . . . . 1 . ignore_parts 2 | . . . . . . . . 2 . disrupt_area 1 | . . . . . . . . 1 . go_dormant 1 | . . . . . . . . 1 . streamctrl_low 1 | . . . . . . 1 . . . streamctrl_high 2 | . . . . . . . . 2 . formatsys_high 4 | . . . . . . 2 . 1 1 Relay Couplers Released 20 | . . . . 12 . . . . 8 Machine Destruction 20 | . . . . 12 . . . . 8 Attached 7 | . . . . . . 2 . 2 3 Fabnet Peak Effective % . | . . . . . . . . . . Robots Rewired 5 | . . . . 5 . . . . . Allies Hacked . | . . . . . . . . . . Hacks Repelled . | . . . . . . . . . . Allies | -11 -10 -9 -8 -8 -7 -7 -7 -6 -6 -------- Run | Yrd Mat Mat Mat Gar Fac Low Low Fac Gar Total Allies 13 | . . . 1 5 . 3 . 3 1 Largest Group 4 | . . . 1 4 . 3 1 2 1 Highest-Rated Group 160 | . . . 10 160 . 48 16 65 32 Highest-Rated Ally 41 | . . . 10 40 . 16 16 41 32 Total Orders 9 | . . . 1 4 . 2 . 2 . STAY 4 | . . . 1 2 . . . 1 . FOLLOW 4 | . . . . 2 . 1 . 1 . DROP 1 | . . . . . . 1 . . . Ally Attacks 59 | . . . . 37 . . . 19 3 Total Damage 1361 | . . . . 857 . . . 401 103 Kills 17 | . . . . 14 . . . 3 . Allies Corrupted . | . . . . . . . . . . Allies Melted . | . . . . . . . . . . Intel | -11 -10 -9 -8 -8 -7 -7 -7 -6 -6 ------- Run | Yrd Mat Mat Mat Gar Fac Low Low Fac Gar Active Infowar (turns) 1599 | 81 764 . . 33 165 . . 223 333 Sensors 556 | . . . . . . . . 223 333 IFF 198 | . . . . 33 165 . . . . Seismic 845 | 81 764 . . . . . . . . Robot Analysis Total . | . . . . . . . . . . Derelict Logs Recovered 2 | . . . . . . 2 . . . Drone Launches . | . . . . . . . . . . Drone Recoveries . | . . . . . . . . . . Exploration | -11 -10 -9 -8 -8 -7 -7 -7 -6 -6 ------------- Run | Yrd Mat Mat Mat Gar Fac Low Low Fac Gar Turns Passed 10016 | 326 852 1116 2231 2504 727 717 207 243 1093 Spaces Moved 4134 | 112 349 555 1033 820 281 321 103 88 472 Core 101 | 3 . . . . . . . . 98 Treads 3242 | 109 349 348 1028 241 281 321 103 88 374 Legs 583 | . . 4 . 579 . . . . . Wheels . | . . . . . . . . . . Hover . | . . . . . . . . . . Flight 208 | . . 203 5 . . . . . . Fastest Speed 26 | 50 160 29 26 235 196 200 200 160 50 Average Speed 183 | 157 160 127 161 255 211 200 200 166 166 Slowest Speed 820 | 160 160 260 520 820 236 200 200 200 240 Overloaded Moves . | . . . . . . . . . . Propulsion Burnouts . | . . . . . . . . . . Robots Hopped . | . . . . . . . . . . Potential Cave-ins . | . . . . . . . . . . Cave-ins Triggered . | . . . . . . . . . . Exploration Rate (%) 39 | 5 66 45 92 60 8 64 18 3 31 Regions Visited 9 Branch Regions 2 Pre-discovered Areas 4 | . . 1 3 . . . . . . Known Exits Taken 6 | . . 1 1 . 1 1 1 1 . Unknown Exits Taken 2 | 1 1 . . . . . . . . Scrap Searched 2 | . . . . . . 2 . . . Spaces Dug 1 | . 1 . . . . . . . . Terrain Destroyed 267 | . 1 . 75 84 55 1 . . 51 Melee 1 | . 1 . . . . . . . . Projectile 13 | . . . . 5 1 1 . . 6 AOE 250 | . . . 75 77 53 . . . 45 Terrain Rammed . | . . . . . . . . . . Walls Destroyed . | . . . . . . . . . . Machines Disabled . | . . . . . . . . . . Actions | -11 -10 -9 -8 -8 -7 -7 -7 -6 -6 --------- Run | Yrd Mat Mat Mat Gar Fac Low Low Fac Gar Total 5794 | 201 531 777 1444 1145 358 374 104 172 688 Wait 795 | 49 100 79 234 131 33 24 1 61 83 Move 4127 | 111 348 554 1033 819 280 320 102 88 472 Hop . | . . . . . . . . . . Pick Up 80 | 2 13 7 30 13 5 1 . . 9 Fast Attach 48 | 7 2 6 17 8 3 . . . 5 Attach 53 | . 1 15 11 6 3 3 . 4 10 Detach 12 | . . 2 2 2 2 . . . 4 Swap 31 | . 3 6 4 5 2 2 . 3 6 Drop 76 | . 9 10 29 11 7 . . 1 9 Fire 349 | 32 2 50 83 52 23 24 1 15 67 Melee 101 | . 53 48 . . . . . . . Ram 4 | . . . . . . . . . 4 Kick . | . . . . . . . . . . Crush 1 | . . . 1 . . . . . . Escape Stasis 34 | . . . . 15 . . . . 19 Rewire 83 | . . . . 83 . . . . . Trap . | . . . . . . . . . . Miscellaneous . | . . . . . . . . . . Route ------- -11/Scrapyard -10/Materials (discovered 3 exits: *Mat x2 / [*Min]) -9/Materials (discovered 4 exits: *Mat x2 / *Min x2) -8/Materials (discovered 4 exits: *Fac x3 / Gar) -8/Garrison (discovered 4 exits: *Fac x3 / [Mat]) -7/Factory (discovered 2 exits: Fac / *Low) -7/Lower Caves -7/Lower Caves -6/Factory (discovered 2 exits: *Low / Gar) -6/Garrison History --------- Turn | Location | Event 19 | -11/Scrapyard | Discovered new exit (range 15) 327 | -11/Scrapyard | Entered Materials 328 | -10/Materials | Build established: Mutant 480 | -10/Materials | Discovered new exit (range 15) 679 | -10/Materials | Discovered new exit (range 9) 1021 | -10/Materials | Repaired Lgt. Treads 1102 | -10/Materials | Core integrity fell below 50% 1120 | -10/Materials | Core integrity fell below 20% 1152 | -10/Materials | Discovered new exit (range 15) 1179 | -10/Materials | Entered another Materials area 1179 | -9/Materials | Evolved 2 slots: Propulsion x1, Weapon x1 1343 | -9/Materials | Discovered new exit (range 7) 1869 | -9/Materials | Discovered new exit (range 13) 1965 | -9/Materials | Destroyed 7 combat bots 2034 | -9/Materials | Build established: Tank 2074 | -9/Materials | Core integrity fell below 50% 2093 | -9/Materials | Identified exit to Mines 2140 | -9/Materials | Core integrity fell below 20% 2181 | -9/Materials | Lost 7 parts (1p2n1u3w) 2211 | -9/Materials | Identified exit to Materials 2287 | -9/Materials | Learned 2 Storage zone layouts 2295 | -9/Materials | Entered another Materials area 2295 | -8/Materials | Evolved 2 slots: Propulsion x1, Weapon x1 2427 | -8/Materials | Central database locked down 2611 | -8/Materials | Build established: Mutant 2620 | -8/Materials | Discovered new exit (range 16) 2918 | -8/Materials | Build established: Tank 3666 | -8/Materials | Learned location of Lower Caves (-7) 3706 | -8/Materials | Learned location of Recycling (-7) 3734 | -8/Materials | Identified exit to Factory 3750 | -8/Materials | Learned 4 Factory zone layouts 3758 | -8/Materials | Learned 4 Lower Caves zone layouts 3759 | -8/Materials | Learned Storage trap positions 4463 | -8/Materials | Garrison activated, responded to threat 4526 | -8/Materials | Identified exit to Garrison 4526 | -8/Materials | Entered Garrison 4552 | -8/Garrison | Triggered checkpoint 4556 | -8/Garrison | Lost 6 parts (3n1u2w) 4592 | -8/Garrison | Triggered checkpoint 4620 | -8/Garrison | Core integrity fell below 50% 4629 | -8/Garrison | Garrison Relay disabled 4662 | -8/Garrison | Lost 3 parts (2n1w) 5395 | -8/Garrison | Build established: Scavenger-Tank 5434 | -8/Garrison | Triggered checkpoint 5451 | -8/Garrison | Discovered exit to Factory (range 34) 5451 | -8/Garrison | Discovered exit to Factory (range 72) 5451 | -8/Garrison | Discovered exit to Factory (range 53) 5451 | -8/Garrison | Discovered new exit (range 72) 5508 | -8/Garrison | Garrison Relay disabled 5561 | -8/Garrison | Phase Generator disabled 5851 | -8/Garrison | Triggered checkpoint 5908 | -8/Garrison | Triggered checkpoint 6080 | -8/Garrison | Triggered checkpoint 6180 | -8/Garrison | Garrison Relay disabled 6220 | -8/Garrison | Installed Relay Interface Framework 7030 | -8/Garrison | Entered Factory 7030 | -7/Factory | Evolved 2 slots: Utility x2 7031 | -7/Factory | Identified exit to Factory 7193 | -7/Factory | Discovered new exit (range 10) 7235 | -7/Factory | Found Prototype Launcher 7235 | -7/Factory | Identified Rocket Array 7371 | -7/Factory | Identified exit to Lower Caves 7757 | -7/Factory | Entered Lower Caves 7840 | -7/Lower Caves | Build established: Bothacker-Gunner 7993 | -7/Lower Caves | Lost 3 parts (1n2w) 8135 | -7/Lower Caves | Learned Factory non-interactive machine intel 8266 | -7/Lower Caves | Learned Factory terminal intel 8373 | -7/Lower Caves | Build established: Scavenger-Gunner 8434 | -7/Lower Caves | Discovered new exit (range 15) 8436 | -7/Lower Caves | Spotted B-75 Beast 8470 | -7/Lower Caves | Identified exit to Lower Caves 8474 | -7/Lower Caves | Entered another Lower Caves area 8474 | -7/Lower Caves | Accompanied by 1 ally 8555 | -7/Lower Caves | Discovered exit to Factory (range 14) 8681 | -7/Lower Caves | Entered Factory 8681 | -6/Factory | Accompanied by 1 ally 8681 | -6/Factory | Evolved 2 slots: Utility x2 8682 | -6/Factory | Loaded intel: 197 non-interactive machine locations 8683 | -6/Factory | Loaded intel: 26 terminal locations 8734 | -6/Factory | Discovered new exit (range 3) 8737 | -6/Factory | Identified exit to Lower Caves 8873 | -6/Factory | Garrison activated, responded to threat 8924 | -6/Factory | Identified exit to Garrison 8924 | -6/Factory | Entered Garrison 8944 | -6/Garrison | Triggered checkpoint 8986 | -6/Garrison | Build established: Scavenger-Skirmisher 9004 | -6/Garrison | Triggered checkpoint 9048 | -6/Garrison | Garrison Relay disabled 9068 | -6/Garrison | Spotted Striker 9069 | -6/Garrison | Spotted Striker 9177 | -6/Garrison | Spotted B-75 Beast 9177 | -6/Garrison | Spotted B-75 Beast 9292 | -6/Garrison | Destroyed B-75 Beast 9313 | -6/Garrison | Lost 10 parts (1p4n1u4w) 9496 | -6/Garrison | Triggered checkpoint 9547 | -6/Garrison | Garrison Relay disabled 9616 | -6/Garrison | Core integrity fell below 50% 9617 | -6/Garrison | Destroyed Striker 9620 | -6/Garrison | Destroyed Striker 9648 | -6/Garrison | Lost 7 parts (2n1u4w) 9906 | -6/Garrison | Build established: Bothacker-Mutant 9940 | -6/Garrison | Core integrity fell below 20% 9968 | -6/Garrison | Lost 5 parts (1p1n2u1w) 10017 | -6/Garrison | Destroyed by C-17 Slicer with Blade Saw Last Messages --------------- 09970_ Field strength at 94. 09970_ Field strength at 88. 09971_ Field strength at 82. 09972_ Field strength at 76. 09973_ Field strength at 70. 09974_ Field strength at 64. 09975_ Field strength at 58. 09976_ Field strength at 52. 09977_ Field strength at 46. 09978_ Field strength at 40. 09979_ Field strength at 34. 09980_ Field strength at 28. 09981_ Field strength at 22. 09982_ Field strength at 16. 09983_ Field strength at 10. 09984_ Field strength at 4. 09985_ Stasis field depleted. 10005_ Adv. Targeting Computer severed. 10007_ Relay Coupler [Sentry] severed. 10014_ Slammed into C-17 Slicer. Map ----- +----------------------------------------------------+ | ?????????????????????????????????????????????????? | | ?????????????????????????????????????????????????? | | ?????????????????????????????????????????????????? | | ??????????????????+??????????????????????????????? | | ?????????????????????????????????????????????????? | | ????????????# #####+#########?????????++++++##?? | | ?????????? #???????? ?? | | ?+???????? ######## #? | | ??????????? ##### ###### + #? | | ????????????????????# #????# + #? | | ????????????????????# #????+ ######## #? | | ????????????? ????# #????# #???????? #? | | ??+?????????# ?##?# ##+#?# #???????? +? | | ????????????# ?#!!# #]]#?# #??????? #? | | ????????????# ##!!# #]]#?# ######## #? | | ????????????# ## + + #?# + #? | | ????????????# ##!!# #!!#?# + #? | | ????????????# ##!!# #!!#?# ######## #? | | ????????????# ##+?# ####?# #????????? #? | | ????????????# #???# #????# #???????????#"#####? | | ????????????# +???#!###??# #???????????# #????? | | ????????????# #???#!# #??# #???????????# #????? | | ????????????# #??##[ !#??# #???????????# #????? | | ????????????# #### !!#####;+#############"###### | | ????????????# !!! | c | | ????????????# !!! @c ! | | ????????????# c | | ????????????##+ ## # ####T######;####" ####### | | ?????????????# # # #??###????# #??#""##????# | | ?????????????# # # # #?????????# #??#" "#????#### | | +?????????###+ ##### #?????????# #??## "##??????? | | ??????????#" + ### #?######??#=##### "!######## | | ??????????#"!+ + #?#""" +??+*" * | | ??????????# + #?###?#"" #??# #######" ! | | ??????????#"!+ #?????#"" #??#[#????# # | | ??????????###" ###?????# " #??#*#????### * [ | | ????????????## "#####??#"! #### ###????# | | ?????????????# ## #??#"" = #????# | | ?????????????# #??#"" #????# | | ????????????##### ##??#""" #????# | | ????????????# #??#######"#####????# ! | | ????????????## # # ##???????# #????????# ! | | ?????????????# #???##### #####????######### | | ????????????# # #??#"""" """"#????????????? | | ????????????######## ##??#" "#????????????? | | ????????????????????####??#"""" """"#????????????? | | ??????????????????????????#"""" """"#????????????? | | ??????????????????????????#" "#????????????? | | ??????????????????????????#"""" """"#????????????? | | ??????????????????????????###########????????????? | +----------------------------------------------------+ Best States ------------- Heat Dissipation 64 Energy Generation 18 Energy Capacity 310 Matter Stores 300 Matter Capacity 300 Sight Range 16 Robot Scan Range 15 Terrain Scan Density 10 Armor Coverage 225 Evasion (%) 64 Targeting Accuracy 8 Recoil Reduction 4 Relay Coupler Types 2 Relay Coupler Value 66 Item Schematics ----------------- None Robot Schematics ------------------ None Fabricated ------------ Nothing Repaired ---------- Lgt. Treads | 20% | -10/Materials Studied --------- Pulse Rifle | -8/Materials | Hacked Gauss Rifle | -7/Factory | Hacked Adv. Treads | -7/Factory | Hacked Lgt. Treads | -7/Factory | Hacked Imp. Deuterium Engine | -7/Factory | Hacked Alien Tech Used ----------------- None Achievements -------------- Analysis Probe Fitting Room Mindtrick Versatile Well Done Challenges ------------ None Game ------ Seed VampiricHypercooledInsulator Manual? 0 Play Time 01:03:40 Cumulative 274.7 hours Start 2026.02.16 @ 14:19:25 End 2026.02.16 @ 15:23:08 Sessions 1 Manual Loads 0 Difficulty Rogue Special Mode None Game No. 228 Rogue 228 Adventurer 0 Explorer 0 Win Type - Total 16 Types 7/0/7/2/0/0/0/0/0/0 Lore% 82 Gallery% 71 Achievement% 53 Wizard Run 0 Options --------- Layout 1 ASCII 0 Keyboard 0 Movement Numpad Keybinds 0 Fullscreen 1 Font 32/SmallcapsGlow Map View 77x35 Zoom Use 0% Tactical HUD 1 Map Filters NONE Filters NONE Steam 1 RUN: 3907a77f-2caf-4730-8b3e-d72549ca46ab